fUST/lending_fUST_20240409
["ID","MTS","AMOUNT","RATE_DAILY","PERIOD"]
[321958121,1712651251059,-500.0,0.00035616,2]
[321958122,1712651251080,-500.0,0.00035616,2]
[321958123,1712651251100,-796.56,0.00035616,2]
[321958124,1712651251124,-501.0977312,0.00035616,2]
[321958125,1712651251144,-500.0,0.00035616,2]
[321958126,1712651251165,-500.0,0.00035616,2]
[321958127,1712651251187,-1955.12,0.00035616,2]
[321958128,1712651251207,-500.0,0.00035616,2]
[321958129,1712651251227,-500.0,0.00035616,2]
[321958130,1712651251248,-500.93752798,0.00035616,2]
[321958131,1712651251269,-308.75985958,0.00035616,2]
[321958132,1712651251291,-500.0,0.00035616,2]
[321958133,1712651251312,-1054.41,0.00035616,2]
[321958134,1712651251332,-500.0,0.00035616,2]
[321958135,1712651251351,-500.0,0.00035616,2]
[321958136,1712651251372,-500.0,0.00035616,2]
[321958137,1712651251392,-500.0,0.00035616,2]
[321958138,1712651251415,-500.0,0.00035616,2]
[321958139,1712651251435,-500.0,0.00035616,2]
[321958140,1712651251455,-500.0,0.00035616,2]
[321958141,1712651251476,-608.04,0.00035616,2]
[321958142,1712651251497,-1443.51,0.00035616,2]
[321958143,1712651251518,-500.0,0.00035616,2]
[321958144,1712651251537,-500.0,0.00035616,2]
[321958145,1712651251557,-500.0,0.00035616,2]
[321958146,1712651251578,-500.0,0.00035616,2]
[321958147,1712651251598,-500.0,0.00035616,2]
[321958148,1712651251619,-500.0,0.00035616,2]
[321958149,1712651251641,-500.0,0.00035616,2]
[321958150,1712651251663,-500.0,0.00035616,2]
[321958151,1712651251685,-500.0,0.00035616,2]
[321958152,1712651251707,-500.0,0.00035616,2]
[321958153,1712651251729,-536.11,0.00035616,2]
[321958154,1712651251750,-500.0,0.00035616,2]
[321958155,1712651251774,-500.0,0.00035616,2]
[321958156,1712651251794,-500.0,0.00035616,2]
[321958157,1712651251817,-501.93927738,0.00035616,2]
[321958158,1712651251839,-220.13815965,0.00035616,2]
[321958159,1712651251864,-500.0,0.00035616,2]
[321958160,1712651251885,-500.0,0.00035616,2]
[321958161,1712651251904,-500.0,0.00035616,2]
[321958162,1712651251925,-500.0,0.00035616,2]
[321958163,1712651251945,-676.16,0.00035616,2]
[321958164,1712651251964,-227.19255023,0.00035616,2]
[321958165,1712651251984,-500.0,0.00035616,2]
[321958166,1712651252004,-536.35467801,0.00035616,2]
[321958167,1712651252026,-500.0,0.00035616,2]
[321958168,1712651252046,-500.0,0.00035616,2]
[321958169,1712651252066,-500.0,0.00035616,2]
[321958170,1712651252085,-1420.91,0.00035616,2]
[321958171,1712651252106,-504.04639624,0.00035616,2]
[321958172,1712651252130,-612.52,0.00035616,2]
[321958173,1712651252151,-500.0,0.00035616,2]
[321958174,1712651252173,-481.43901605,0.00035616,2]
[321958175,1712651252195,-500.79271676,0.00035616,2]
[321958176,1712651252218,-236.6693551,0.00035616,2]
[321958177,1712651252237,-500.0,0.00035616,2]
[321958178,1712651252256,-500.0,0.00035616,2]
[321958179,1712651252279,-500.0,0.00035616,2]
[321958180,1712651252299,-500.82789157,0.00035616,2]
[321958181,1712651252319,-500.77111735,0.00035616,2]
[321958182,1712651252339,-500.0,0.00035616,2]
[321958183,1712651252359,-500.0,0.00035616,2]
[321958184,1712651252380,-500.89236074,0.00035616,2]
[321958185,1712651252400,-500.0,0.00035616,2]
[321958186,1712651252421,-500.0,0.00035616,2]
[321958187,1712651252440,-500.0,0.00035616,2]
[321958188,1712651252459,-500.0,0.00035616,2]
[321958189,1712651252480,-500.0,0.00035616,2]
[321958190,1712651252500,-500.8559204,0.00035616,2]
[321958191,1712651252521,-500.0,0.00035616,2]
[321958192,1712651252541,-500.0,0.00035616,2]
[321958193,1712651252561,-608.96,0.00035616,2]
[321958194,1712651252580,-500.0,0.00035616,2]
[321958195,1712651252605,-500.0,0.00035616,2]
[321958196,1712651252624,-969.85,0.00035616,2]
[321958197,1712651252643,-502.43727925,0.00035616,2]
[321958198,1712651252663,-500.0,0.00035616,2]
[321958199,1712651252784,-502.31197,0.00035616,2]
[321958200,1712651252803,-500.0,0.00035616,2]
[321958201,1712651252824,-1662.28,0.00035616,2]
[321958202,1712651252844,-500.0,0.00035616,2]
[321958203,1712651252865,-339.935949,0.00035616,2]
[321958204,1712651252884,-500.0,0.00035616,2]
[321958205,1712651252904,-500.0,0.00035616,2]
[321958206,1712651252925,-500.0,0.00035616,2]
[321958207,1712651252945,-500.0,0.00035616,2]
[321958208,1712651252966,-500.0,0.00035616,2]
[321958209,1712651252986,-500.0,0.00035616,2]
[321958210,1712651253006,-500.0,0.00035616,2]
[321958211,1712651253029,-500.0,0.00035616,2]
[321958212,1712651253049,-632.32,0.00035616,2]
[321958213,1712651253069,-500.0,0.00035616,2]
[321958214,1712651253088,-500.0,0.00035616,2]
[321958215,1712651253109,-500.0,0.00035616,2]
[321958216,1712651253134,-568.21,0.00035616,2]
[321958217,1712651253155,-500.0,0.00035616,2]
[321958218,1712651253175,-500.0,0.00035616,2]
[321958219,1712651253196,-981.61,0.00035616,2]
[321958220,1712651253217,-537.44729915,0.00035616,2]
[321958221,1712651253237,-653.26,0.00035616,2]
[321958222,1712651253256,-769.04,0.00035616,2]
[321958223,1712651253279,-500.0,0.00035616,2]
[321958224,1712651253299,-300.57471143,0.00035616,2]
[321958225,1712651253319,-500.0,0.00035616,2]
[321958226,1712651253339,-500.0,0.00035616,2]
[321958227,1712651253359,-500.0,0.00035616,2]
[321958228,1712651253379,-500.0,0.00035616,2]
[321958229,1712651253400,-500.0,0.00035616,2]
[321958230,1712651253420,-618.98,0.00035616,2]
[321958231,1712651253440,-501.35032413,0.00035616,2]
[321958232,1712651253461,-501.94480427,0.00035616,2]
[321958233,1712651253482,-500.0,0.00035616,2]
[321958234,1712651253502,-3962.85,0.00035616,2]
[321958235,1712651253524,-1394.6,0.00035616,2]
[321958236,1712651253544,-500.0,0.00035616,2]
[321958237,1712651253568,-500.0,0.00035616,2]
[321958238,1712651253589,-500.0,0.00035616,2]
[321958239,1712651253611,-500.0,0.00035616,2]
[321958240,1712651253632,-500.0,0.00035616,2]
[321958241,1712651253654,-500.0,0.00035616,2]
[321958242,1712651253674,-547.3,0.00035616,2]
[321958243,1712651253695,-500.0,0.00035616,2]
[321958244,1712651253715,-603.85991666,0.00035616,2]
[321958245,1712651253735,-500.0,0.00035616,2]
[321958246,1712651253755,-2740.48,0.00035616,2]
[321958247,1712651253777,-500.0,0.00035616,2]
[321958248,1712651253798,-500.0,0.00035616,2]
[321958249,1712651253818,-500.0,0.00035616,2]
[321958250,1712651253843,-500.0,0.00035616,2]
[321958251,1712651253864,-8437.39,0.00035616,2]
[321958252,1712651253885,-500.0,0.00035616,2]
[321958253,1712651253905,-528.02933333,0.00035616,2]
[321958254,1712651253924,-500.0,0.00035616,2]
[321958255,1712651253945,-500.0,0.00035616,2]
[321958256,1712651253965,-500.0,0.00035616,2]
[321958257,1712651253986,-500.0,0.00035616,2]
[321958258,1712651254006,-636.08,0.00035616,2]
[321958259,1712651254029,-500.0,0.00035616,2]
[321958260,1712651254050,-3952.64,0.00035616,2]
[321958261,1712651254070,-849.88,0.00035616,2]
[321958262,1712651254090,-512.51385362,0.00035616,2]
[321958263,1712651254112,-500.0,0.00035616,2]
[321958264,1712651254134,-500.0,0.00035616,2]
[321958265,1712651254155,-500.0,0.00035616,2]
[321958266,1712651254177,-341.64732285,0.00035616,2]
[321958267,1712651254198,-501.78263884,0.00035616,2]
[321958268,1712651254221,-500.0,0.00035616,2]
[321958269,1712651254242,-500.0,0.00035616,2]
[321958270,1712651254262,-500.0,0.00035616,2]
[321958271,1712651254287,-1655.43,0.00035616,2]
[321958272,1712651254309,-500.0,0.00035616,2]
[321958273,1712651254330,-500.0,0.00035616,2]
[321958274,1712651254350,-500.0,0.00035616,2]
[321958275,1712651254370,-1072.37,0.00035616,2]
[321958276,1712651254389,-501.48843731,0.00035616,2]
[321958277,1712651254408,-500.0,0.00035616,2]
[321958278,1712651254428,-500.0,0.00035616,2]
[321958279,1712651254448,-500.0,0.00035616,2]
[321958280,1712651254468,-500.0,0.00035616,2]
[321958281,1712651254491,-500.0,0.00035616,2]
[321958282,1712651254511,-400.27476091,0.00035616,2]
[321958283,1712651254533,-500.0,0.00035616,2]
[321958284,1712651254552,-500.0,0.00035616,2]
[321958285,1712651254572,-500.0,0.00035616,2]
[321958286,1712651254591,-500.0,0.00035616,2]
[321958287,1712651254611,-507.82616622,0.00035616,2]
[321958288,1712651254631,-500.0,0.00035616,2]
[321958289,1712651254652,-433.68865394,0.00035616,2]
[321958290,1712651254672,-500.0,0.00035616,2]
[321958291,1712651254692,-7409.3,0.00035616,2]
[321958292,1712651254712,-501.09205567,0.00035616,2]
[321958293,1712651254734,-500.0,0.00035616,2]
[321958294,1712651254755,-4158.19,0.00035616,2]
[321958295,1712651254776,-1837.29,0.00035616,2]
[321958296,1712651254796,-249.90501089,0.00035616,2]
[321958297,1712651254816,-500.0,0.00035616,2]
[321958298,1712651254837,-608.8,0.00035616,2]
[321958299,1712651254856,-500.0,0.00035616,2]
[321958300,1712651254876,-1000.0,0.00035616,7]
[321958301,1712651254896,-2912.08,0.00035616,2]
[321958302,1712651254916,-500.0,0.00035616,2]
[321958303,1712651254937,-19712.69,0.00035616,2]
[321958304,1712651254957,-500.0,0.00035616,2]
[321958305,1712651254978,-3859.71,0.00035616,2]
[321958306,1712651254997,-501.00453664,0.00035616,2]
[321958307,1712651255018,-3641.14,0.00035616,2]
[321958308,1712651255038,-500.0,0.00035616,2]
[321958309,1712651255059,-500.0,0.00035616,2]
[321958310,1712651255078,-382.34103395,0.00035616,2]
[321958311,1712651255099,-500.0,0.00035616,2]
[321958312,1712651255122,-500.0,0.00035616,2]
[321958313,1712651255142,-500.7657084,0.00035616,2]
[321958314,1712651255162,-500.0,0.00035616,2]
[321958315,1712651255182,-654.17,0.00035616,2]
[321958316,1712651255205,-2190.92,0.00035616,2]
[321958317,1712651255227,-500.0,0.00035616,2]
[321958318,1712651255369,-884.49,0.00035616,2]
[321958319,1712651255392,-373.33904717,0.00035616,2]
[321958320,1712651255414,-2623.83,0.00035616,2]
[321958321,1712651255434,-1000.0,0.00035616,10]
[321958322,1712651255456,-898.44,0.00035616,2]
[321958323,1712651255480,-500.0,0.00035616,2]
[321958324,1712651255503,-500.0,0.00035616,2]
[321958325,1712651255528,-6858.55,0.00035616,2]
[321958326,1712651255550,-712.46,0.00035616,2]
[321958327,1712651255571,-500.0,0.00035616,2]
[321958328,1712651255593,-500.0,0.00035616,2]
[321958329,1712651255614,-500.0,0.00035616,2]
[321958330,1712651255635,-500.0,0.00035616,2]
[321958331,1712651255657,-1732.92,0.00035616,2]
[321958332,1712651255677,-500.0,0.00035616,2]
[321958333,1712651255698,-500.0,0.00035616,2]
[321958334,1712651255718,-500.0,0.00035616,2]
[321958335,1712651255739,-500.0,0.00035616,2]
[321958336,1712651255760,-500.0,0.00035616,2]
[321958337,1712651255782,-500.0,0.00035616,2]
[321958338,1712651255802,-500.0,0.00035616,2]
[321958339,1712651255823,-500.0,0.00035616,2]
[321958340,1712651255843,-500.0,0.00035616,2]
[321958341,1712651255864,-500.0,0.00035672,5]
[321958342,1712651255885,-500.0,0.00035672,5]
[321958343,1712651255906,-504.86099455,0.00035672,5]
[321958344,1712651255926,-500.0,0.00035672,5]
[321958345,1712651255947,-500.0,0.00035672,5]
[321958346,1712651255968,-500.0,0.00035672,5]
[321958347,1712651255989,-500.0,0.00035672,5]
[321958348,1712651256008,-500.0,0.00035672,5]
[321958349,1712651256030,-575.15,0.00035672,5]
[321958350,1712651256049,-500.0,0.00035672,5]
[321958351,1712651256070,-500.0,0.00035672,5]
[321958352,1712651256090,-500.0,0.00035672,5]
[321958353,1712651256111,-500.0,0.00035672,5]
[321958354,1712651256135,-500.0,0.00035672,5]
[321958355,1712651256156,-421.54478705,0.00035672,5]
[321958356,1712651256177,-203.73528161,0.00035672,5]
[321958357,1712651256198,-500.0,0.00035672,5]
[321958358,1712651256221,-500.0,0.00035672,5]
[321958359,1712651256241,-585.40827387,0.00035672,5]
[321958360,1712651256261,-500.0,0.00035672,5]
[321958361,1712651256286,-500.0,0.00035672,5]
[321958362,1712651256307,-500.0,0.00035672,5]
[321958363,1712651256329,-500.0,0.00035672,5]
[321958364,1712651256350,-500.0,0.00035672,5]
[321958365,1712651258010,-300.0,0.00035672,5]
[321958366,1712651258039,-500.0,0.00035672,5]
[321958367,1712651258071,-500.0,0.00035672,5]
[321958368,1712651258094,-500.0,0.00035672,5]
[321958369,1712651258116,-500.0,0.00035672,5]
[321958370,1712651258139,-500.0,0.00035672,5]
[321958371,1712651258160,-500.0,0.00035672,5]
[321958372,1712651258182,-500.0,0.00035672,5]
[321958373,1712651258203,-500.0,0.00035672,5]
[321958374,1712651258224,-464.74934141,0.00035672,5]
[321958375,1712651258244,-500.0,0.00035672,5]
[321958376,1712651258264,-500.0,0.00035672,5]
[321958377,1712651258287,-500.0,0.00035672,5]
[321958378,1712651258308,-500.0,0.00035672,5]
[321958379,1712651258329,-500.0,0.00035672,5]
[321958380,1712651258350,-500.0,0.00035672,5]
[321958381,1712651258370,-1417.04,0.00035672,5]
[321958382,1712651258392,-500.0,0.00035672,5]
[321958383,1712651258412,-2057.25,0.00035672,5]
[321958384,1712651258432,-151.0,0.00035672,5]
[321958385,1712651258453,-500.0,0.00035672,5]
[321958386,1712651258474,-1105.91,0.00035672,5]
[321958387,1712651258496,-500.0,0.00035672,5]
[321958388,1712651258516,-1768.04938576,0.00035672,5]
[321958458,1712651432882,-154.92253873,0.00027396,2]
[321958460,1712651432892,-174.032239,0.00027397,2]
[321958462,1712651432901,-174.032239,0.00033165,2]
[321958464,1712651432911,-166.666666,0.00033349,2]
[321958466,1712651432921,-208.31696358,0.00033516,2]
[321958468,1712651432933,-157.89693308,0.00034258,2]
[321958529,1712651438649,-8.76973292,0.00034258,2]
[321958531,1712651438659,-350.29026708,0.000347,2]
[321958532,1712651438670,-49.70973292,0.000347,2]
[321958533,1712651438680,-25709.91323976,0.00034701,4]
[321958535,1712651438689,-29271.5846379,0.00034702,2]
[321958537,1712651438698,-166.666666,0.00035167,2]
[321958538,1712651438707,-165.1,0.00035615,2]
[321958540,1712651438717,-165.1,0.00035615,2]
[321958541,1712651438726,-165.1,0.00035615,2]
[321958543,1712651438735,-165.1,0.00035615,2]
[321958544,1712651438744,-500.0,0.00035616,2]
[321958545,1712651438753,-500.0,0.00035616,2]
[321958546,1712651438763,-500.0,0.00035616,2]
[321958547,1712651438772,-500.0,0.00035616,2]
[321958548,1712651438781,-500.0,0.00035616,2]
[321958549,1712651438791,-611.87652153,0.00035616,2]
[321958551,1712651438800,-500.0,0.00035616,2]
[321958553,1712651438810,-500.0,0.00035616,2]
[321958554,1712651438819,-500.0,0.00035616,2]
[321958556,1712651438828,-501.15600288,0.00035616,2]
[321958557,1712651438837,-2041.23,0.00035616,2]
[321958558,1712651438847,-500.0,0.00035616,2]
[321958559,1712651438856,-18891.32,0.00035616,2]
[321958560,1712651438865,-1034.8,0.00035616,2]
[321958561,1712651438875,-2393.63,0.00035616,2]
[321958562,1712651438884,-501.82630852,0.00035616,2]
[321958563,1712651438893,-500.0,0.00035616,2]
[321958564,1712651438902,-500.0,0.00035616,2]
[321958565,1712651438911,-651.98,0.00035616,2]
[321958566,1712651438921,-500.0,0.00035616,2]
[321958567,1712651438931,-500.0,0.00035616,2]
[321958568,1712651438939,-500.0,0.00035616,2]
[321958569,1712651438948,-1067.19,0.00035616,2]
[321958570,1712651438957,-500.0,0.00035616,2]
[321958571,1712651438967,-1011.76,0.00035616,2]
[321958572,1712651438977,-500.0,0.00035616,2]
[321958573,1712651438986,-500.0,0.00035616,2]
[321958574,1712651438996,-500.0,0.00035616,2]
[321958575,1712651439005,-500.0,0.00035616,2]
[321958576,1712651439014,-1382.25,0.00035616,2]
[321958577,1712651439023,-500.0,0.00035616,2]
[321958578,1712651439033,-1000.0,0.00035616,10]
[321958579,1712651439042,-500.0,0.00035616,2]
[321958580,1712651439051,-1000.0,0.00035616,10]
[321958581,1712651439060,-500.0,0.00035616,2]
[321958582,1712651439070,-1000.0,0.00035616,10]
[321958583,1712651439079,-500.0,0.00035616,2]
[321958584,1712651439088,-1000.0,0.00035616,10]
[321958585,1712651439098,-646.63045969,0.00035616,2]
[321958586,1712651439107,-1000.0,0.00035616,10]
[321958587,1712651439116,-1000.0,0.00035616,10]
[321958588,1712651439125,-1000.0,0.00035616,10]
[321958589,1712651439145,-1000.0,0.00035616,10]
[321958590,1712651439154,-1000.0,0.00035616,10]
[321958591,1712651439170,-1000.0,0.00035616,10]
[321958592,1712651439182,-1000.0,0.00035616,10]
[321958593,1712651439191,-1000.0,0.00035616,10]
[321958594,1712651439202,-1000.0,0.00035616,10]
[321958595,1712651439212,-1000.0,0.00035616,10]
[321958596,1712651439222,-1000.0,0.00035616,10]
[321958597,1712651439231,-500.0,0.00035616,2]
[321958598,1712651439241,-1000.0,0.00035616,10]
[321958599,1712651439253,-1000.0,0.00035616,10]
[321958600,1712651439263,-500.0,0.00035616,2]
[321958601,1712651439273,-1104.92777759,0.00035616,10]
[321958602,1712651439282,-500.0,0.00035616,2]
[321958603,1712651439293,-500.0,0.00035616,2]
[321958604,1712651439302,-500.0,0.00035616,2]
[321958605,1712651439312,-2070.79,0.00035616,2]
[321958606,1712651439322,-2179.98,0.00035616,2]
[321958607,1712651439332,-500.0,0.00035616,2]
[321958608,1712651439342,-1270.05,0.00035616,2]
[321958609,1712651439352,-500.0,0.00035616,2]
[321958610,1712651439361,-2358.82,0.00035616,2]
[321958611,1712651439371,-500.0,0.00035616,2]
[321958612,1712651439381,-1619.57,0.00035616,2]
[321958613,1712651439391,-500.0,0.00035616,2]
[321958614,1712651439400,-24756.87,0.00035616,2]
[321958615,1712651439409,-574.21,0.00035616,2]
[321958616,1712651439419,-500.0,0.00035616,2]
[321958617,1712651439431,-500.0,0.00035616,2]
[321958618,1712651439440,-500.0,0.00035616,2]
[321958619,1712651439449,-500.0,0.00035616,2]
[321958620,1712651439459,-814.47,0.00035616,2]
[321958621,1712651439469,-500.0,0.00035616,2]
[321958622,1712651439478,-553.67930524,0.00035616,2]
[321958623,1712651439487,-500.0,0.00035616,2]
[321958624,1712651439497,-4843.91,0.00035616,2]
[321958625,1712651439506,-500.0,0.00035616,2]
[321958626,1712651439516,-500.0,0.00035616,2]
[321958627,1712651439526,-500.0,0.00035616,2]
[321958628,1712651439536,-647.9,0.00035616,2]
[321958629,1712651439547,-500.0,0.00035616,2]
[321958630,1712651439556,-203.35958831,0.00035616,2]
[321958631,1712651439566,-1586.46,0.00035616,2]
[321958632,1712651439576,-240.0912655,0.00035616,2]
[321958633,1712651439586,-500.0,0.00035616,2]
[321958634,1712651439596,-578.42139183,0.00035616,2]
[321958635,1712651439605,-500.0,0.00035616,2]
[321958636,1712651439614,-500.0,0.00035616,2]
[321958637,1712651439624,-337.43909331,0.00035616,2]
[321958638,1712651439634,-500.0,0.00035616,2]
[321958639,1712651439643,-7100.58,0.00035616,2]
[321958640,1712651439652,-500.0,0.00035616,2]
[321958641,1712651439662,-500.0,0.00035616,2]
[321958642,1712651439672,-500.0,0.00035616,2]
[321958643,1712651439684,-2790.75,0.00035616,2]
[321958644,1712651439693,-1046.75,0.00035616,2]
[321958645,1712651439702,-500.0,0.00035616,2]
[321958646,1712651439711,-500.0,0.00035616,2]
[321958647,1712651439721,-2435.91,0.00035616,2]
[321958648,1712651439730,-592.07022979,0.00035616,2]
[321958649,1712651439740,-500.0,0.00035616,2]
[321958650,1712651439749,-1760.74,0.00035616,2]
[321958651,1712651439758,-71505.89802393,0.00035672,3]
[321958652,1712651439768,-500.0,0.00035672,5]
[321958653,1712651439777,-500.0,0.00035672,5]
[321958654,1712651439787,-678.87,0.00035672,5]
[321958655,1712651439796,-500.0,0.00035672,5]
[321958656,1712651439805,-500.0,0.00035672,5]
[321958657,1712651439814,-500.0,0.00035672,5]
[321958658,1712651439824,-500.0,0.00035672,5]
[321958659,1712651439833,-500.0,0.00035672,5]
[321958660,1712651439842,-240.56211982,0.00035672,5]
[321958661,1712651439851,-500.0,0.00035672,5]
[321958662,1712651439861,-500.0,0.00035672,5]
[321958663,1712651439870,-500.0,0.00035672,5]
[321958664,1712651439879,-500.0,0.00035672,5]
[321958665,1712651439888,-500.0,0.00035672,5]
[321958666,1712651439898,-500.0,0.00035672,5]
[321958667,1712651439907,-168.31728859,0.00035672,5]
[321958668,1712651439917,-500.0,0.00035672,5]
[321958669,1712651439927,-294.51046818,0.00035672,5]
[321958670,1712651439937,-500.0,0.00035672,5]
[321958671,1712651439945,-500.0,0.00035672,5]
[321958672,1712651439954,-646.41899913,0.00035672,5]
[321958673,1712651439962,-3797.73,0.00035672,5]
[321958674,1712651439969,-184.69300335,0.00035672,5]
[321958675,1712651439975,-500.0,0.00035672,5]
[321958676,1712651439984,-1013.10269998,0.00035672,4]
[321958677,1712651439991,-500.0,0.00035672,5]
[321958678,1712651440001,-500.0,0.00035672,5]
[321958679,1712651440010,-180.43505414,0.00035672,5]
[321958680,1712651440019,-8085.84,0.00035672,5]
[321958681,1712651440029,-500.0,0.00035672,5]
[321958682,1712651440038,-500.0,0.00035672,5]
[321958683,1712651440048,-500.0,0.00035672,5]
[321958684,1712651440057,-3787.95,0.00035672,5]
[321958685,1712651440067,-500.0,0.00035672,5]
[321958686,1712651440076,-698.47,0.00035672,5]
[321958687,1712651440085,-500.0,0.00035672,5]
[321958688,1712651440094,-623.09521547,0.00035672,5]
[321958689,1712651440103,-500.0,0.00035672,5]
[321958690,1712651440113,-500.0,0.00035672,5]
[321958691,1712651440122,-501.44278197,0.00035672,5]
[321958692,1712651440131,-1859.95,0.00035672,5]
[321958693,1712651440140,-638.18,0.00035672,5]
[321958694,1712651440149,-1027.69,0.00035672,5]
[321958695,1712651440159,-500.0,0.00035672,5]
[321958696,1712651440169,-500.0,0.00035672,5]
[321958697,1712651440180,-460.4420057,0.00035672,5]
[321958698,1712651440190,-500.0,0.00035672,5]
[321958699,1712651440199,-500.0,0.00035672,5]
[321958700,1712651440209,-500.0,0.00035672,5]
[321958701,1712651440218,-4128.08,0.00035672,5]
[321958702,1712651440228,-500.0,0.00035672,5]
[321958703,1712651440237,-500.0,0.00035672,5]
[321958705,1712651440246,-500.0,0.00035672,5]
[321958706,1712651440257,-500.0,0.00035672,5]
[321958707,1712651440267,-500.0,0.00035672,5]
[321958708,1712651440277,-500.0,0.00035672,5]
[321958709,1712651440286,-500.0,0.00035672,5]
[321958710,1712651440295,-3489.42,0.00035672,5]
[321958712,1712651440305,-500.0,0.00035672,5]
[321958714,1712651440314,-501.09464452,0.00035672,5]
[321958716,1712651440323,-500.0,0.00035672,5]
[321958717,1712651440333,-500.0,0.00035672,5]
[321958719,1712651440342,-2099.63,0.00035672,5]
[321958720,1712651440351,-500.91291952,0.00035672,5]
[321958721,1712651440360,-500.0,0.00035672,5]
[321958722,1712651440369,-500.0,0.00035672,5]
[321958723,1712651440379,-861.01,0.00035672,5]
[321958724,1712651440387,-1058.29616819,0.00035846,2]
[321958725,1712651440397,-698.07663535,0.00035888,4]
[321958726,1712651440406,-1944.59219774,0.00035888,4]
[321958727,1712651440416,-216.67010204,0.00035888,4]
[321958728,1712651440426,-530.19178331,0.00035888,4]
[321958729,1712651440437,-1131.94892897,0.00035888,4]
[321958730,1712651440447,-155.56708048,0.00035888,4]
[321958731,1712651440456,-500.0,0.00035889,5]
[321958732,1712651440465,-500.0,0.00035889,5]
[321958733,1712651440475,-500.0,0.0003589,5]
[321958734,1712651440484,-441.46129472,0.0003589,5]
[321958735,1712651440493,-500.0,0.0003589,5]
[321958736,1712651440502,-500.0,0.0003589,5]
[321958737,1712651440512,-500.0,0.0003589,5]
[321958738,1712651440521,-501.11126677,0.0003589,5]
[321958739,1712651440531,-500.0,0.0003589,5]
[321958740,1712651440541,-500.0,0.0003589,5]
[321958741,1712651440550,-500.0,0.0003589,5]
[321958742,1712651440560,-500.0,0.0003589,5]
[321958743,1712651440569,-500.0,0.0003589,5]
[321958744,1712651440579,-500.0,0.0003589,5]
[321958745,1712651440589,-247.00310956,0.0003589,5]
[321958746,1712651440598,-500.0,0.0003589,5]
[321958747,1712651440607,-500.0,0.0003589,5]
[321958748,1712651440616,-500.0,0.0003589,5]
[321958749,1712651440626,-500.0,0.0003589,5]
[321958750,1712651440635,-608.04,0.0003589,5]
[321958751,1712651440646,-500.0,0.0003589,5]
[321958752,1712651440655,-500.0,0.0003589,5]
[321958753,1712651440664,-500.0,0.0003589,5]
[321958754,1712651440674,-500.0,0.0003589,5]
[321958756,1712651440685,-500.75401144,0.0003589,5]
[321958757,1712651440695,-500.0,0.0003589,5]
[321958758,1712651440704,-676.16,0.0003589,5]
[321958759,1712651440714,-500.0,0.0003589,5]
[321958760,1712651440724,-1420.91,0.0003589,5]
[321958762,1712651440733,-612.52,0.0003589,5]
[321958764,1712651440742,-500.0,0.0003589,5]
[321958765,1712651440752,-500.0,0.0003589,5]
[321958766,1712651440761,-500.0,0.0003589,5]
[321958767,1712651440770,-500.0,0.0003589,5]
[321958768,1712651440780,-500.0,0.0003589,5]
[321958769,1712651440788,-503.40518269,0.0003589,5]
[321958770,1712651440797,-503.61657073,0.0003589,5]